bitfinex/quotes_BTCUSD_20260310
["timestamp","ask_amount","ask_price","bid_price","bid_amount"]
[1773115461924,0.03,69623.0,69611.0,0.07182761]
[1773115462448,0.03,69623.0,69613.0,0.07211358]
[1773115462651,0.00144,69622.0,69613.0,0.07211358]
[1773115462786,0.00144,69623.0,69613.0,0.07211358]
[1773115462983,0.00144,69623.0,69613.0,0.0724943]
[1773115463382,0.03,69622.0,69613.0,0.00066892]
[1773115463600,0.07325596,69623.0,69608.0,0.07183082]
[1773115463601,0.03,69618.0,69608.0,0.07183082]
[1773115463837,0.03038018,69618.0,69608.0,0.07183082]
[1773115465357,0.03,69617.0,69608.0,0.07183082]
[1773115465598,0.03,69617.0,69608.0,0.0164156]
[1773115466377,0.00038018,69618.0,69608.0,0.0164156]
[1773115466718,0.00060019,69618.0,69608.0,0.0164156]
[1773115466886,0.07181373,69625.0,69608.0,0.0164156]
[1773115466887,0.00022001,69625.0,69608.0,0.0164156]
[1773115467092,0.00022001,69625.0,69608.0,0.01679578]
[1773115467292,0.26024019,69624.0,69608.0,0.01679578]
[1773115467491,0.00022001,69625.0,69609.0,0.07182979]
[1773115467492,0.03,69621.0,69609.0,0.07182979]
[1773115467904,0.03,69621.0,69609.0,0.08824539]
[1773115468097,0.03,69621.0,69610.0,0.0164156]
[1773115468290,0.03,69621.0,69609.0,0.07182979]
[1773115468291,0.03,69621.0,69611.0,0.26258284]
[1773115468509,0.00022001,69632.0,69609.0,0.07182979]
[1773115468510,0.07180732,69631.0,69612.0,0.0164156]
[1773115468709,0.00022001,69632.0,69615.0,0.26258284]
[1773115468710,0.00144,69629.0,69615.0,0.26258284]
[1773115468938,0.00022001,69632.0,69619.0,0.26258284]
[1773115469111,0.00022001,69632.0,69622.0,0.0164156]
[1773115469315,0.00022001,69632.0,69623.0,0.0164156]
[1773115469520,0.26024019,69642.0,69623.0,0.0164156]
[1773115469521,0.03,69641.0,69626.0,0.0164156]
[1773115469922,0.03,69641.0,69628.0,0.0164156]
[1773115470263,0.03,69641.0,69629.0,0.00144]
[1773115470588,0.03,69640.0,69629.0,0.00144]
[1773115470788,0.03,69640.0,69630.0,0.0164156]
[1773115471236,0.03144,69640.0,69625.0,0.0149756]
[1773115471434,0.03144,69640.0,69607.0,0.21446273]
[1773115471435,0.10180498,69634.0,69617.0,0.07182153]
[1773115471632,0.10180498,69634.0,69618.0,0.0082078]
[1773115471633,0.00144,69633.0,69618.0,0.0082078]
[1773115471840,0.00023,69650.0,69621.0,0.26258284]
[1773115472049,0.00023,69650.0,69625.0,0.11419823]
[1773115472302,0.00023,69650.0,69630.0,0.26258284]
[1773115472529,0.00023,69650.0,69634.0,0.26258284]
[1773115472763,0.00023,69650.0,69636.0,0.0082078]
[1773115472934,0.00023,69650.0,69639.0,0.26258284]
[1773115473132,0.00023,69650.0,69640.0,0.0096478]
[1773115473601,0.00023,69650.0,69641.0,0.07179678]
[1773115474149,0.00034404,69650.0,69641.0,0.07179678]
[1773115475430,0.03,69645.0,69635.0,0.00144]
[1773115475649,0.36564308,69645.0,69632.0,0.00144]
[1773115476064,0.10179276,69645.0,69632.0,0.00144]
[1773115476861,0.10179276,69645.0,69629.0,0.07180812]
[1773115477061,0.03,69641.0,69629.0,0.07180812]
[1773115477660,0.03,69639.0,69629.0,0.07180812]
[1773115478710,0.07179592,69642.0,69629.0,0.08001592]
[1773115478924,0.03144,69641.0,69630.0,0.0082078]
[1773115479309,0.07178584,69652.0,69630.0,0.0082078]
[1773115479310,0.07235211,69650.0,69630.0,0.0082078]
[1773115479519,0.00144,69645.0,69632.0,0.00852913]
[1773115479972,0.10178918,69649.0,69633.0,0.07180503]
[1773115480219,0.00144,69647.0,69634.0,0.00144]
[1773115480424,0.03,69645.0,69633.0,0.07324503]
[1773115481600,0.26370672,69646.0,69633.0,0.07324503]
[1773115481972,0.07179266,69645.0,69633.0,0.07324503]
[1773115482443,0.03,69643.0,69627.0,0.07181021]
[1773115482659,0.00306742,69644.0,69627.0,0.07181021]
[1773115482660,0.03,69641.0,69627.0,0.07181021]
[1773115483077,0.03144,69641.0,69627.0,0.07181021]
[1773115483740,0.03144,69641.0,69627.0,0.08033934]
[1773115484589,0.07179781,69640.0,69627.0,0.08033934]
[1773115484810,0.03,69639.0,69627.0,0.08033934]
[1773115485865,0.03,69639.0,69628.0,0.00852913]
[1773115486700,0.00166001,69641.0,69629.0,0.07180915]
[1773115486701,0.03,69638.0,69629.0,0.07180915]
[1773115486912,0.07179092,69647.0,69629.0,0.07180915]
[1773115487122,0.00144,69645.0,69631.0,0.24381833]
[1773115487371,0.00144,69646.0,69634.0,0.00852913]
[1773115487588,0.00022001,69648.0,69637.0,0.24381833]
[1773115487794,0.00022001,69648.0,69638.0,0.00852913]
[1773115488021,0.03,69652.0,69640.0,0.00852913]
[1773115488263,0.03144,69652.0,69642.0,0.00852913]
[1773115488481,0.07177736,69660.0,69640.0,0.00011404]
[1773115488482,0.07177659,69661.0,69644.0,0.00852913]
[1773115488722,0.0001194,69657.0,69648.0,0.00852913]
[1773115489600,0.0001194,69657.0,69644.0,0.0717906]
[1773115489601,0.03,69655.0,69644.0,0.0717931]
[1773115489811,0.03,69655.0,69638.0,0.11440254]
[1773115489812,0.03,69652.0,69638.0,0.07323937]
[1773115490043,0.0001194,69657.0,69638.0,0.07323937]
[1773115490044,0.2984165,69650.0,69638.0,0.07179937]
[1773115490252,0.29396431,69650.0,69636.0,0.07180127]
[1773115490453,0.03456618,69648.0,69636.0,0.07180127]
[1773115490660,0.03,69646.0,69634.0,0.07180323]
[1773115491061,0.00144,69645.0,69634.0,0.07180323]
[1773115491698,0.00144,69645.0,69633.0,0.07324503]
[1773115493450,0.03,69643.0,69633.0,0.07180503]
[1773115494280,0.03,69643.0,69627.0,0.00852913]
[1773115494491,0.00603724,69642.0,69628.0,0.07181019]
[1773115494687,0.00603724,69642.0,69628.0,0.07325019]
[1773115495321,0.03,69643.0,69630.0,0.01105109]
[1773115495519,0.03,69641.0,69631.0,0.08285818]
[1773115497364,0.00691543,69640.0,69628.0,0.07325019]
[1773115497782,0.03,69638.0,69628.0,0.07325019]
[1773115498138,0.03,69638.0,69628.0,0.07181019]
[1773115500023,0.03,69636.0,69628.0,0.18621273]
[1773115500608,0.03,69636.0,69629.0,0.01105109]
[1773115501020,0.03,69637.0,69629.0,0.01105109]
[1773115501342,0.03767802,69637.0,69628.0,0.11440254]
[1773115501544,0.03767802,69637.0,69627.0,0.11460254]
[1773115502095,0.03767802,69637.0,69622.0,0.17204287]
[1773115502096,0.00778423,69634.0,69621.0,0.0001458]
[1773115502295,0.00778423,69632.0,69621.0,0.0001458]
[1773115503507,0.00144,69633.0,69622.0,0.07181637]
[1773115503757,0.07180194,69637.0,69622.0,0.07181637]
[1773115503758,0.07180106,69637.0,69625.0,0.24805825]
[1773115503965,0.07180106,69637.0,69628.0,0.07180919]
[1773115504252,0.07180106,69637.0,69629.0,0.25910934]
[1773115504615,0.07180106,69637.0,69629.0,0.01105109]
[1773115504616,0.03,69636.0,69629.0,0.01105109]
[1773115505048,0.03,69636.0,69626.0,0.07181213]
[1773115506036,0.03,69634.0,69626.0,0.08286322]
[1773115506293,0.03,69634.0,69624.0,0.07181381]
[1773115508286,0.10180503,69633.0,69624.0,0.07181381]
[1773115509314,0.03,69632.0,69624.0,0.07181381]
[1773115510275,0.03,69631.0,69624.0,0.07181381]
[1773115511419,0.03,69630.0,69624.0,0.07181381]
[1773115511831,0.00144,69629.0,69617.0,0.0002]
[1773115512029,0.00769286,69628.0,69615.0,0.07182316]
[1773115512457,0.03,69626.0,69615.0,0.07182316]
[1773115513051,0.03008729,69626.0,69615.0,0.07182316]
[1773115513259,0.00780915,69625.0,69624.0,0.0002]
[1773115513423,0.00780915,69625.0,69617.0,0.0002]
[1773115514312,0.00780915,69625.0,69614.0,0.07202414]
[1773115514741,0.00780915,69625.0,69609.0,0.17204287]
[1773115514742,0.0079696,69621.0,69598.0,0.0002]
[1773115514961,0.07181431,69624.0,69598.0,0.0002]
[1773115514962,0.0079696,69618.0,69605.0,0.07203347]
[1773115516049,0.03,69622.0,69607.0,0.07183185]
[1773115516266,0.03,69622.0,69611.0,0.01251131]
[1773115516932,0.03,69620.0,69612.0,0.07182669]
[1773115517148,0.00144,69632.0,69616.0,0.01251131]
[1773115517352,0.00888046,69643.0,69619.0,0.24805825]
[1773115517596,0.00888046,69641.0,69621.0,0.24805825]
[1773115517769,0.26425427,69641.0,69621.0,0.24805825]
[1773115517972,0.03,69637.0,69621.0,0.24805825]
[1773115518180,0.00144,69636.0,69623.0,0.24805825]
[1773115518960,0.03,69634.0,69623.0,0.31987277]
[1773115519168,0.03,69634.0,69623.0,0.24805825]
[1773115519367,0.03,69634.0,69622.0,0.01251131]
[1773115519737,0.03,69634.0,69622.0,0.08432745]
[1773115520148,0.03,69634.0,69622.0,0.08432738]
[1773115520352,0.26112549,69632.0,69607.0,0.07183146]
[1773115520555,0.03,69624.0,69607.0,0.00038018]
[1773115520759,0.03915894,69618.0,69607.0,0.00038018]
[1773115520979,0.03,69616.0,69607.0,0.07221179]
[1773115521187,0.00144,69615.0,69609.0,0.26056956]
[1773115521386,0.00144,69620.0,69610.0,0.01251131]
[1773115521594,0.07181225,69627.0,69612.0,0.26056956]
[1773115521956,0.03144,69626.0,69614.0,0.0002]
[1773115522386,0.00144,69625.0,69614.0,0.0002]
[1773115522891,0.03,69622.0,69614.0,0.0002]
[1773115523398,0.03,69622.0,69608.0,0.07183082]
[1773115523798,0.0075883,69619.0,69607.0,0.00058018]
[1773115524035,0.03,69620.0,69604.0,0.0002]
[1773115524036,0.00144,69618.0,69604.0,0.0002]
[1773115524180,0.0075883,69614.0,69600.0,0.07226841]
[1773115524381,0.03,69613.0,69600.0,0.07226841]
[1773115524647,0.0375883,69611.0,69600.0,0.07226841]
[1773115524806,0.0375883,69611.0,69597.0,0.0002]
[1773115524807,0.00765604,69610.0,69597.0,0.0002]
[1773115524982,0.00765604,69610.0,69590.0,0.00048]
[1773115524983,0.03,69604.0,69590.0,0.00048]
[1773115525199,0.07182979,69609.0,69590.0,0.00048]
[1773115525200,0.03,69602.0,69590.0,0.00048]
[1773115525409,0.03765604,69602.0,69590.0,0.00048]
[1773115525620,0.26425427,69600.0,69584.0,0.0002]
[1773115525819,0.03,69602.0,69577.0,0.07212774]
[1773115525820,0.00803612,69593.0,69577.0,0.07212774]
[1773115526026,0.03,69594.0,69577.0,0.07212757]
[1773115526027,0.00803612,69591.0,69577.0,0.07212757]
[1773115527036,0.03,69589.0,69577.0,0.07194998]
[1773115527555,0.03,69589.0,69577.0,8.729e-05]
[1773115527713,0.03,69589.0,69573.0,0.33243645]
[1773115527714,0.00818082,69588.0,69568.0,0.24805825]
[1773115527920,0.00818082,69585.0,69568.0,0.00011421]
[1773115528155,0.29425427,69586.0,69568.0,0.00011421]
[1773115528156,0.00144,69584.0,69568.0,0.00011421]
[1773115528534,0.03818082,69583.0,69568.0,0.00011421]
[1773115528748,0.26569427,69584.0,69564.0,0.07749571]
[1773115528749,0.03823826,69577.0,69564.0,0.00562]
[1773115528919,0.03,69572.0,69556.0,0.01251131]
[1773115529124,0.03,69570.0,69554.0,0.07203608]
[1773115529343,0.00144,69569.0,69554.0,0.07203608]
[1773115529677,0.00144,69569.0,69555.0,0.26056956]
[1773115530178,0.00144,69569.0,69554.0,0.00015]
[1773115530397,0.03144,69569.0,69554.0,0.07203626]
[1773115530563,0.00144,69568.0,69557.0,0.24805825]
[1773115530763,0.00144,69568.0,69556.0,0.01251131]
[1773115530965,0.00144,69568.0,69554.0,0.07203626]
[1773115530966,0.03,69566.0,69554.0,0.07203626]
[1773115531166,0.03,69566.0,69554.0,0.07203659]
[1773115532100,0.07187315,69567.0,69553.0,0.0003014]
[1773115532101,0.03,69564.0,69553.0,0.0003014]
[1773115532261,0.03,69562.0,69550.0,0.00023]
[1773115532456,0.26425427,69563.0,69550.0,0.00023]
[1773115532457,0.03,69560.0,69550.0,0.00023]
[1773115533108,0.03,69558.0,69550.0,0.00023]
[1773115534631,0.00144,69564.0,69551.0,0.27985171]
[1773115534825,0.00144,69563.0,69551.0,0.27985171]
[1773115535233,0.07187109,69570.0,69551.0,0.27985171]
[1773115535234,0.07187109,69570.0,69552.0,0.07188865]
[1773115535426,0.01417589,69569.0,69552.0,0.07188865]
[1773115535630,0.03,69568.0,69552.0,0.07188865]
[1773115536706,0.03144,69569.0,69552.0,0.07188865]
[1773115537163,0.03,69567.0,69553.0,0.2673404]
[1773115537513,0.03,69567.0,69548.0,0.00144]
[1773115537514,0.03,69567.0,69540.0,0.2666404]
[1773115537515,0.03,69560.0,69540.0,0.2666404]
[1773115537847,0.03,69556.0,69540.0,0.2666404]
[1773115538245,0.04273589,69556.0,69540.0,0.2666404]
[1773115538927,0.03,69555.0,69543.0,0.01251131]
[1773115539127,0.00144,69558.0,69546.0,0.2673404]
[1773115539326,0.00144,69558.0,69548.0,0.2673404]
[1773115539530,0.07188349,69557.0,69549.0,0.2673404]
[1773115540067,0.03,69556.0,69549.0,0.2673404]
[1773115540289,0.07188168,69559.0,69549.0,0.2673404]
[1773115540502,0.07187645,69564.0,69551.0,0.2673404]
[1773115540503,0.00144,69564.0,69551.0,0.2673404]
[1773115540658,0.00144,69564.0,69555.0,0.2673404]
[1773115540865,0.00144,69564.0,69557.0,0.2673404]
[1773115541891,0.03,69562.0,69557.0,0.2673404]
[1773115542092,0.03,69562.0,69555.0,0.00144]
[1773115542610,0.03,69562.0,69555.0,0.2687804]
[1773115543012,0.03,69562.0,69555.0,0.28280816]
[1773115544315,0.07187729,69563.0,69555.0,0.28280816]
[1773115544621,0.07187419,69569.0,69557.0,0.2673404]
[1773115544877,0.40368549,69590.0,69560.0,0.01402776]
[1773115544878,0.07209592,69575.0,69560.0,0.01402776]
[1773115545078,0.0863335,69582.0,69564.0,0.01402776]
[1773115545079,0.07185869,69581.0,69564.0,0.01402776]
[1773115545219,0.07185869,69581.0,69568.0,0.01402776]
[1773115545421,0.07329869,69581.0,69571.0,0.2673404]
[1773115545630,0.03,69580.0,69555.0,0.07188531]
[1773115545835,0.00144,69579.0,69558.0,0.2673404]
[1773115546035,0.00022001,69575.0,69559.0,0.2687804]
[1773115546232,0.00033399,69575.0,69559.0,0.2673404]
[1773115546442,0.03,69574.0,69561.0,0.07187935]
[1773115546861,0.03,69574.0,69562.0,0.00144]
[1773115547237,0.03,69574.0,69561.0,0.07187935]
[1773115547438,0.00033399,69575.0,69564.0,0.2673404]
[1773115547670,0.00033399,69575.0,69567.0,0.01402776]
[1773115547847,0.00033399,69575.0,69568.0,0.28136816]
[1773115548281,0.00144,69579.0,69568.0,0.28136816]
[1773115548282,0.08602568,69587.0,69568.0,0.2673404]
[1773115548432,0.08602568,69587.0,69572.0,0.07186799]
[1773115548433,0.07185363,69586.0,69572.0,0.07186799]
[1773115548644,0.03,69585.0,69575.0,0.2673404]
[1773115548839,0.00562,69592.0,69578.0,0.01402776]
[1773115549044,0.00706,69592.0,69581.0,0.2673404]
[1773115549266,0.00562,69592.0,69583.0,0.2673404]
[1773115549477,0.01419793,69605.0,69583.0,0.2673404]
[1773115549478,0.07183747,69602.0,69583.0,0.00144]
[1773115549688,0.03,69599.0,69588.0,0.01402776]
[1773115549884,0.03,69599.0,69589.0,0.28136816]
[1773115550695,0.00144,69603.0,69589.0,0.28136816]
[1773115550696,0.00144,69606.0,69591.0,0.28136816]
[1773115550981,0.00182072,69606.0,69591.0,0.28136816]
[1773115551421,0.00182072,69606.0,69591.0,0.28280816]
[1773115552399,0.00182072,69606.0,69591.0,0.28136816]
[1773115552789,0.03182072,69606.0,69593.0,0.2690415]
[1773115552991,0.03204073,69606.0,69593.0,0.2690415]
[1773115553208,0.03204073,69606.0,69593.0,0.25445785]
[1773115553387,0.07182876,69611.0,69592.0,0.07184733]
[1773115553388,0.00144,69610.0,69597.0,0.25445785]
[1773115553537,0.0015541,69610.0,69597.0,0.2704815]
[1773115553894,0.0015541,69610.0,69598.0,0.00144]
[1773115553895,0.0301141,69610.0,69598.0,0.00144]
[1773115554108,0.0301141,69610.0,69597.0,0.2690415]
[1773115554310,0.0301141,69610.0,69598.0,0.00144]
[1773115554506,0.0301141,69610.0,69597.0,0.01602365]
[1773115554913,0.0301141,69610.0,69598.0,0.07184114]
[1773115555679,0.10194351,69610.0,69598.0,0.07184114]
[1773115556479,0.10194351,69610.0,69598.0,0.32629899]
[1773115556632,0.0301141,69610.0,69598.0,0.32629899]
[1773115556839,0.03,69609.0,69599.0,0.2690415]
[1773115557063,0.03,69609.0,69600.0,0.01458365]
[1773115557234,0.03,69609.0,69601.0,0.25445785]
[1773115557438,0.03,69609.0,69598.0,0.07184114]
[1773115557439,0.03,69609.0,69603.0,0.2690415]
[1773115557867,0.0303014,69612.0,69603.0,0.25445785]
[1773115558070,0.0303014,69612.0,69606.0,0.01458365]
[1773115558271,0.00584001,69620.0,69609.0,0.25445785]
[1773115558272,0.07765906,69620.0,69609.0,0.25445785]
[1773115558471,0.07761906,69620.0,69609.0,0.25445785]
[1773115558713,0.07761906,69620.0,69603.0,0.0015541]
[1773115558714,0.01424705,69619.0,69603.0,0.0001141]
[1773115558925,0.03,69616.0,69605.0,0.00144]
[1773115559134,0.00144,69615.0,69605.0,0.073273]
[1773115559355,0.00144,69615.0,69606.0,0.25445785]
[1773115559658,0.00144,69615.0,69608.0,0.25445785]
[1773115560353,0.00144,69615.0,69605.0,0.073273]
[1773115560759,0.00144,69615.0,69605.0,0.071833]
[1773115560964,0.03,69613.0,69603.0,0.0001141]
[1773115561136,0.07182463,69614.0,69603.0,0.0001141]
[1773115561137,0.03,69611.0,69603.0,0.0001141]
[1773115562112,0.03,69611.0,69597.0,0.00144]
[1773115562113,0.26481289,69609.0,69581.0,0.25445785]
[1773115562341,0.04424705,69604.0,69583.0,0.25445785]
[1773115562540,0.03,69604.0,69586.0,0.01458365]
[1773115562779,0.03,69604.0,69590.0,0.01458365]
[1773115562948,0.03,69602.0,69593.0,0.25445785]
[1773115563336,0.00144,69601.0,69593.0,0.25445785]
[1773115563661,0.00144,69601.0,69592.0,0.07184733]
[1773115563884,0.00144,69601.0,69592.0,0.32631957]
[1773115564461,0.00144,69607.0,69592.0,0.07184733]
[1773115564672,0.07182475,69614.0,69593.0,0.26905589]
[1773115564990,7.098e-05,69614.0,69597.0,0.25447224]
[1773115565162,7.098e-05,69614.0,69601.0,0.01458365]
[1773115565322,7.098e-05,69614.0,69602.0,0.26905589]
[1773115565527,7.098e-05,69614.0,69602.0,0.26901589]
[1773115567115,7.098e-05,69614.0,69603.0,0.07183598]
[1773115567672,7.098e-05,69614.0,69604.0,0.25447224]
[1773115568426,7.098e-05,69614.0,69600.0,0.00144]
[1773115568427,7.098e-05,69614.0,69581.0,0.01458365]
[1773115568673,0.01424705,69610.0,69584.0,0.25447224]
[1773115568808,0.00144,69609.0,69587.0,0.01458365]
[1773115569007,0.00144,69609.0,69590.0,0.25447224]
[1773115569219,7.098e-05,69614.0,69594.0,0.25447224]
[1773115569489,0.00144,69613.0,69597.0,0.01504085]
[1773115569656,0.00144,69613.0,69600.0,0.25447224]
[1773115570005,0.00144,69613.0,69601.0,0.26951309]
[1773115570151,0.00022188,69614.0,69600.0,0.25447224]
[1773115570358,0.00022188,69614.0,69598.0,0.00144]
[1773115570359,0.07204653,69614.0,69602.0,0.25447224]
[1773115570583,0.07204653,69614.0,69604.0,0.26951309]
[1773115571168,0.07204653,69614.0,69601.0,0.07183754]
[1773115571380,0.07204653,69614.0,69602.0,0.25447224]
[1773115571600,0.07204653,69614.0,69600.0,0.07183836]
[1773115571601,0.01567735,69613.0,69600.0,0.07183836]
[1773115571809,0.01567735,69613.0,69597.0,0.25447224]
[1773115571989,0.01567735,69613.0,69597.0,0.07184212]
[1773115572392,0.07204653,69614.0,69599.0,0.01504085]
[1773115572592,0.05204653,69614.0,69600.0,0.25447224]
[1773115572994,0.05204653,69614.0,69601.0,0.01504085]
[1773115573284,0.05204653,69614.0,69604.0,0.26951309]
[1773115574693,0.03,69613.0,69604.0,0.26951309]
[1773115575309,0.03,69611.0,69604.0,0.34134732]
[1773115575503,0.05204653,69614.0,69605.0,0.26951309]
[1773115575504,0.07182528,69614.0,69605.0,0.26951309]
[1773115576271,0.03,69613.0,69605.0,0.26951309]
[1773115577069,0.03,69613.0,69603.0,0.07183549]
[1773115577296,0.03,69613.0,69599.0,0.32631154]
[1773115577297,0.03,69611.0,69600.0,0.32631132]
[1773115577498,0.03,69611.0,69602.0,0.26951309]
[1773115579682,0.03022001,69611.0,69602.0,0.26951309]
[1773115579864,0.1020481,69611.0,69601.0,0.0718375]
[1773115580437,0.03022001,69611.0,69601.0,0.0718375]
[1773115580653,0.07182669,69612.0,69601.0,0.0718375]
[1773115580654,0.03,69612.0,69605.0,0.01504085]
[1773115580826,0.03,69612.0,69606.0,0.25447224]
[1773115581257,0.03,69612.0,69601.0,0.34135059]
[1773115583356,0.03,69610.0,69601.0,0.34135059]
[1773115583721,0.03,69610.0,69601.0,0.0718375]
[1773115583899,0.03,69610.0,69603.0,0.26951309]
[1773115584098,0.03,69611.0,69603.0,0.26951309]
[1773115584952,0.03,69611.0,69601.0,0.0718375]
[1773115587229,0.03,69610.0,69602.0,0.25447224]
[1773115587353,0.03,69610.0,69603.0,0.01504085]
[1773115588653,0.07182781,69611.0,69603.0,0.01504085]
[1773115589170,0.07204782,69611.0,69603.0,0.08687581]
[1773115591892,0.07204782,69611.0,69598.0,0.17226226]
[1773115591893,0.01279118,69610.0,69595.0,0.17226226]
[1773115592061,0.03,69605.0,69592.0,0.07184733]
[1773115592262,0.03,69605.0,69595.0,0.25447224]
[1773115592507,0.03,69605.0,69595.0,0.26951309]
[1773115592699,0.03,69605.0,69596.0,0.01504085]
[1773115593363,0.00144,69606.0,69596.0,0.01504085]
[1773115593924,0.03,69604.0,69596.0,0.01504085]
[1773115594127,0.07182886,69610.0,69596.0,0.07184304]
[1773115594328,0.00144,69610.0,69600.0,0.01504085]
[1773115594658,0.00144,69610.0,69603.0,0.25918181]
[1773115595018,0.03,69610.0,69603.0,0.25918181]
[1773115595912,0.07181954,69619.0,69602.0,0.07183612]
[1773115596122,0.00580001,69620.0,69602.0,0.07183612]
[1773115596123,0.1020427,69616.0,69606.0,0.24414096]
[1773115596323,0.1020427,69616.0,69602.0,0.0719071]
[1773115596324,0.03,69614.0,69602.0,7.098e-05]
[1773115596532,0.33409963,69616.0,69602.0,7.098e-05]
[1773115596533,0.04274604,69610.0,69602.0,7.098e-05]
[1773115596736,0.00144,69609.0,69602.0,7.098e-05]
[1773115596963,0.00144,69609.0,69602.0,0.00107098]
[1773115597994,0.00166001,69609.0,69602.0,0.00107098]
[1773115598396,0.03,69607.0,69602.0,0.00107098]
[1773115598845,0.04270928,69607.0,69602.0,7.098e-05]
[1773115599050,0.04270928,69607.0,69602.0,0.07190788]
[1773115599051,0.03,69607.0,69602.0,0.07190788]
[1773115599264,0.03,69607.0,69602.0,7.098e-05]
[1773115599586,0.03,69606.0,69602.0,7.098e-05]
[1773115600355,0.03,69605.0,69602.0,7.098e-05]
[1773115600913,0.03,69605.0,69596.0,0.17390226]
[1773115600914,0.03,69605.0,69596.0,0.33190532]
[1773115601110,0.00144,69608.0,69598.0,0.01572118]
[1773115601279,0.00144,69608.0,69600.0,0.01572118]
[1773115601480,0.03,69607.0,69601.0,0.24414096]
[1773115602515,0.07165496,69607.0,69601.0,0.24414096]
[1773115602720,0.07147789,69607.0,69601.0,0.24414096]
[1773115603317,0.07147789,69607.0,69596.0,0.0724239]
[1773115603318,0.00144,69606.0,69597.0,0.07184114]
[1773115603518,0.01413811,69606.0,69597.0,0.07184217]
[1773115603923,0.00144,69606.0,69597.0,0.07184217]
[1773115604551,0.00144,69608.0,69598.0,0.24414096]
[1773115604754,0.00144,69608.0,69599.0,0.25986214]
[1773115605076,0.07182772,69611.0,69599.0,0.25986214]
[1773115605254,0.07182772,69611.0,69597.0,0.07328217]
[1773115605255,0.00144,69609.0,69600.0,0.24414096]
[1773115605461,0.08502209,69616.0,69597.0,0.07328217]
[1773115605462,0.07204277,69616.0,69602.0,0.24414096]
[1773115605671,0.03,69615.0,69605.0,0.01572118]
[1773115605872,0.03,69615.0,69606.0,0.25986214]
[1773115606070,0.03,69615.0,69607.0,0.25986214]
[1773115606743,0.03,69615.0,69608.0,0.07183082]
[1773115607045,0.10182384,69615.0,69608.0,0.07183082]
[1773115608274,0.10182384,69615.0,69606.0,0.07183235]
[1773115608674,0.10182384,69615.0,69606.0,0.33169449]
[1773115611769,0.07146963,69615.0,69606.0,0.33169449]
[1773115612142,0.03022001,69616.0,69606.0,0.33169449]
[1773115612324,0.10348294,69616.0,69606.0,0.33169449]
[1773115613126,0.10204294,69616.0,69606.0,0.33169449]
[1773115613336,0.10348294,69616.0,69606.0,0.33169449]
[1773115613619,0.10348294,69616.0,69606.0,0.33189449]
[1773115613804,0.00022001,69615.0,69606.0,0.33189449]
[1773115615523,4.287e-05,69615.0,69606.0,0.33189449]
[1773115616899,0.03,69614.0,69606.0,0.33189449]
[1773115617051,0.03,69612.0,69605.0,0.07183341]
[1773115618078,0.03,69612.0,69605.0,0.34643663]
[1773115618399,0.03,69614.0,69605.0,0.34643663]
[1773115619238,4.287e-05,69615.0,69605.0,0.34643663]
[1773115620842,4.287e-05,69615.0,69605.0,0.07183341]
[1773115621058,4.287e-05,69615.0,69605.0,0.07183352]
[1773115622012,4.287e-05,69615.0,69604.0,0.07183404]
[1773115622234,4.287e-05,69615.0,69599.0,0.0002]
[1773115622235,0.04160547,69611.0,69599.0,0.07348008]
[1773115622377,0.04160547,69611.0,69599.0,0.07204008]
[1773115622804,0.03,69611.0,69599.0,0.07204008]
[1773115623173,0.00144,69610.0,69599.0,0.07204008]
[1773115623375,0.03,69609.0,69600.0,0.01584288]
[1773115623576,0.03,69609.0,69600.0,0.26595183]
[1773115624183,0.03,69609.0,69386.0,0.02298937]
[1773115624184,0.03,69609.0,69582.0,0.17223824]
[1773115624185,0.25640445,69608.0,69582.0,0.17223824]
[1773115624394,0.25640445,69608.0,69570.0,0.18852128]
[1773115624395,0.25640445,69608.0,69560.0,0.0002]
[1773115624397,0.03,69589.0,69560.0,0.0002]
[1773115624622,0.01598853,69580.0,69558.0,0.25010895]
[1773115624838,0.01598853,69580.0,69558.0,0.22549398]
[1773115624839,0.03,69573.0,69558.0,0.22549398]
[1773115625051,0.25640445,69577.0,69558.0,0.22549398]
[1773115625052,0.03,69569.0,69558.0,0.22549398]
[1773115625254,0.03,69569.0,69554.0,0.00144]
[1773115625456,0.03,69565.0,69553.0,0.0002]
[1773115625657,0.07187419,69566.0,69553.0,0.0002]
[1773115625658,0.01598853,69563.0,69553.0,0.0002]
[1773115625861,0.01598853,69563.0,69553.0,0.00031401]
[1773115626664,0.03,69562.0,69553.0,0.00031401]
[1773115627131,0.04598853,69562.0,69553.0,0.00031401]
[1773115627335,0.03,69560.0,69553.0,0.00031401]
[1773115627745,0.07187935,69561.0,69549.0,0.0002]
[1773115628068,0.07187935,69561.0,69549.0,0.00011398]
[1773115628069,0.01598853,69560.0,69549.0,0.00011398]
[1773115628875,0.25640445,69559.0,69544.0,1e-08]
[1773115629041,0.23130468,69560.0,69539.0,0.00048]
[1773115629042,0.03,69554.0,69539.0,0.00048]
[1773115629240,0.03,69548.0,69539.0,0.00059421]
[1773115629458,0.03,69546.0,69539.0,0.00059421]
[1773115629658,0.03,69544.0,69539.0,0.00059421]
[1773115630120,0.03,69544.0,69539.0,0.00079421]
[1773115630315,0.04707233,69544.0,69539.0,0.00079421]
[1773115630698,0.03,69544.0,69539.0,0.00079421]
[1773115631283,0.03,69543.0,69539.0,0.00079421]
[1773115633399,0.10189886,69543.0,69539.0,0.00079421]
[1773115633600,0.03,69551.0,69540.0,0.2672484]
[1773115633809,0.03,69548.0,69540.0,0.2672484]
[1773115634100,0.07189175,69549.0,69542.0,0.25010895]
[1773115634300,0.07188762,69553.0,69543.0,0.2672484]
[1773115634529,0.00023,69575.0,69545.0,0.25010895]
[1773115634530,0.00144,69563.0,69545.0,0.25010895]
[1773115634787,0.00144,69563.0,69539.0,0.07413599]
[1773115634788,0.00144,69564.0,69548.0,0.01713945]
[1773115634955,0.00144,69565.0,69552.0,0.01713945]
[1773115635157,0.03,69570.0,69556.0,0.01713945]
[1773115635400,0.00023,69575.0,69559.0,0.25010895]
[1773115635613,0.17296,69583.0,69559.0,0.25010895]
[1773115635614,0.07185814,69582.0,69564.0,0.25010895]
[1773115635782,0.0004,69583.0,69568.0,0.25010895]
[1773115635954,0.0004,69583.0,69571.0,0.01713945]
[1773115636175,0.00144,69590.0,69579.0,0.25010895]
[1773115636343,0.00144,69590.0,69581.0,0.25010895]
[1773115636795,0.00155404,69590.0,69581.0,0.25010895]